[Event "ONJK FGH 2"]
[Site "Enschede, Netherlands"]
[Date "2022.08.13"]
[Round "7.1"]
[White "Zantingh, Kyo"]
[Black "Ma, Tim"]
[Result "0-1"]
[TimeControl "25min + 10sec/move"]
[WhiteElo "739"]
[BlackElo "757"]

1. e4 {[%clk 00:25:18]} {[%emt 00:00:02]} e5 {[%clk 00:25:18]} {[%emt
00:00:02]} 2. Nf3 {[%clk 00:25:27]} {[%emt 00:00:02]} Nc6 {[%clk 00:25:26]}
{[%emt 00:00:02]} 3. Bc4 {[%clk 00:25:32]} {[%emt 00:00:05]} Bc5 {[%clk
00:25:33]} {[%emt 00:00:03]} 4. c3 {[%clk 00:25:36]} {[%emt 00:00:06]} d6
{[%clk 00:25:33]} {[%emt 00:00:09]} 5. d4 {[%clk 00:25:44]} {[%emt 00:00:02]}
Bb6 {[%clk 00:25:13]} {[%emt 00:00:31]} 6. dxe5 {[%clk 00:25:46]} {[%emt
00:00:08]} dxe5 {[%clk 00:25:20]} {[%emt 00:00:03]} 7. Qxd8+ {[%clk 00:25:53]}
{[%emt 00:00:03]} Kxd8 {[%clk 00:25:27]} {[%emt 00:00:02]} 8. Ng5 {[%clk
00:25:54]} {[%emt 00:00:10]} Nh6 {[%clk 00:25:20]} {[%emt 00:00:17]} 9. Bxf7
{[%emt 00:00:17]} Rf8 {[%clk 00:25:14]} {[%emt 00:00:04]} 10. Bc4 {[%clk
00:25:41]} {[%emt 00:00:28]} Bxf2+ {[%clk 00:25:09]} {[%emt 00:00:11]} 11. Kd1
{[%clk 00:25:46]} {[%emt 00:00:10]} Bg4+ {[%clk 00:25:12]} {[%emt 00:00:06]} 12.
Be2 {[%clk 00:25:39]} {[%emt 00:00:17]} Ke7 {[%clk 00:24:59]} {[%emt 00:00:23]}
13. Bxg4 {[%clk 00:25:45]} {[%emt 00:00:04]} Nxg4 {[%clk 00:25:03]} {[%emt
00:00:06]} 14. Bd2 {[%clk 00:25:45]} {[%emt 00:00:10]} Rad8 {[%clk 00:25:09]}
{[%emt 00:00:04]} 15. Nxh7 {[%clk 00:25:46]} {[%emt 00:00:09]} Rh8 {[%clk
00:25:15]} {[%emt 00:00:04]} 16. Ng5 {[%clk 00:25:48]} {[%emt 00:00:08]} Be3
{[%clk 00:25:14]} {[%emt 00:00:10]} 17. Nf3 {[%clk 00:25:55]} {[%emt 00:00:04]}
Bxd2 {[%clk 00:25:09]} {[%emt 00:00:16]} 18. Nbxd2 {[%clk 00:25:59]} {[%emt
00:00:06]} Nf2+ {[%clk 00:25:15]} {[%emt 00:00:03]} 19. Kc2 {[%clk 00:26:03]}
{[%emt 00:00:06]} Nxh1 {[%clk 00:25:20]} {[%emt 00:00:05]} 20. Rxh1 {[%clk
00:26:10]} {[%emt 00:00:04]} Kf6 {[%clk 00:24:55]} {[%emt 00:00:36]} 21. g4
{[%clk 00:25:59]} {[%emt 00:00:20]} Rhf8 {[%clk 00:24:42]} {[%emt 00:00:23]} 22.
h4 {[%clk 00:25:59]} {[%emt 00:00:10]} g6 {[%clk 00:24:25]} {[%emt 00:00:26]}
23. Ng5 {[%clk 00:25:59]} {[%emt 00:00:11]} Rh8 {[%clk 00:23:58]} {[%emt
00:00:33]} 24. Rf1+ {[%clk 00:26:07]} {[%emt 00:00:06]} Kg7 {[%clk 00:23:23]}
{[%emt 00:00:44]} 25. Ne6+ {[%clk 00:26:14]} {[%emt 00:00:03]} Kh6 {[%clk
00:23:26]} {[%emt 00:00:07]} 26. Nxd8 {[%clk 00:26:23]} {[%emt 00:00:02]} Rxd8
{[%clk 00:23:33]} {[%emt 00:00:03]} 27. g5+ {[%clk 00:26:29]} {[%emt 00:00:04]}
Kh5 {[%clk 00:23:39]} {[%emt 00:00:03]} 28. Rg1 {[%clk 00:26:29]} {[%emt
00:00:11]} Kxh4 {[%emt 00:00:06]} 29. Nf3+ {[%emt 00:00:03]} Kh5 {[%clk
00:23:29]} {[%emt 00:00:11]} 30. Rg3 {[%clk 00:26:08]} {[%emt 00:00:32]} Rd7
{[%clk 00:23:04]} {[%emt 00:00:34]} 31. b3 {[%clk 00:26:00]} {[%emt 00:00:18]}
a6 {[%clk 00:22:29]} {[%emt 00:00:45]} 32. b4 {[%clk 00:25:56]} {[%emt
00:00:14]} b5 {[%clk 00:22:34]} {[%emt 00:00:05]} 33. Kb3 {[%clk 00:26:00]}
{[%emt 00:00:06]} Rd3 {[%clk 00:21:54]} {[%emt 00:00:50]} 34. Kc2 {[%clk
00:25:57]} {[%emt 00:00:12]} Re3 {[%clk 00:22:02]} {[%emt 00:00:03]} 35. Kd2
{[%clk 00:26:06]} {[%emt 00:00:01]} Rxe4 {[%clk 00:22:01]} {[%emt 00:00:10]} 36.
Kd3 {[%clk 00:26:11]} {[%emt 00:00:05]} Rf4 {[%clk 00:21:49]} {[%emt 00:00:22]}
37. Ke3 {[%clk 00:26:18]} {[%emt 00:00:04]} Rc4 {[%clk 00:21:34]} {[%emt
00:00:24]} 38. Kf2 {[%clk 00:26:23]} {[%emt 00:00:06]} Rxc3 {[%clk 00:21:05]}
{[%emt 00:00:39]} 39. Kg2 {[%clk 00:26:31]} {[%emt 00:00:02]} Rc4 {[%clk
00:21:06]} {[%emt 00:00:09]} 40. Kh3 {[%clk 00:26:39]} {[%emt 00:00:02]} Rxb4
{[%clk 00:21:05]} {[%emt 00:00:10]} 41. a3 {[%clk 00:26:46]} {[%emt 00:00:05]}
Rc4 {[%clk 00:21:11]} {[%emt 00:00:03]} 42. Nd2 {[%clk 00:26:49]} {[%emt
00:00:07]} Ra4 {[%clk 00:21:11]} {[%emt 00:00:10]} 43. Re3 {[%clk 00:26:41]}
{[%emt 00:00:18]} a5 {[%clk 00:20:16]} {[%emt 00:01:05]} 44. Nf3 {[%clk
00:26:37]} {[%emt 00:00:14]} b4 {[%clk 00:20:08]} {[%emt 00:00:18]} 45. axb4
{[%clk 00:26:43]} {[%emt 00:00:03]} Rxb4 {[%clk 00:19:53]} {[%emt 00:00:25]} 46.
Rc3 {[%clk 00:26:45]} {[%emt 00:00:10]} e4 {[%clk 00:19:01]} {[%emt 00:01:01]}
47. Rxc6 {[%clk 00:26:46]} {[%emt 00:00:09]} exf3 {[%clk 00:19:03]} {[%emt
00:00:08]} 48. Rc3 {[%clk 00:26:43]} {[%emt 00:00:13]} Rf4 {[%clk 00:19:08]}
{[%emt 00:00:05]} 49. Kg3 {[%clk 00:26:50]} {[%emt 00:00:02]} Kxg5 {[%clk
00:19:12]} {[%emt 00:00:05]} 50. Rxf3 {[%emt 00:00:08]} Rxf3+ {[%clk 00:19:20]}
51. Kxf3 {[%clk 00:27:04]} {[%emt 00:00:02]} a4 {[%clk 00:19:29]} {[%emt
00:00:01]} 52. Ke3 {[%clk 00:27:11]} {[%emt 00:00:03]} a3 {[%clk 00:19:38]} 53.
Kd3 {[%clk 00:27:21]} a2 {[%clk 00:19:47]} 54. Kc2 {[%clk 00:27:30]} a1=Q
{[%clk 00:19:50]} {[%emt 00:00:04]} 55. Kd3 {[%clk 00:27:39]} {[%emt 00:00:04]}
Qa3+ {[%clk 00:19:56]} {[%emt 00:00:04]} 56. Kc4 {[%clk 00:27:48]} {[%emt
00:00:01]} Kf4 {[%clk 00:20:02]} {[%emt 00:00:03]} 57. Kd4 {[%clk 00:27:58]}
{[%emt 00:00:01]} g5 {[%clk 00:20:09]} {[%emt 00:00:03]} 58. Kc4 {[%clk
00:28:06]} {[%emt 00:00:01]} g4 {[%clk 00:20:18]} {[%emt 00:00:02]} 59. Kd4
{[%clk 00:28:15]} g3 {[%clk 00:20:26]} 60. Kc4 {[%clk 00:28:25]} g2 {[%clk
00:20:27]} {[%emt 00:00:10]} 61. Kd4 {[%clk 00:28:34]} {[%emt 00:00:02]} g1=R
{[%emt 00:00:15]} 62. Kc4 {[%emt 00:00:05]} Rc1+ {[%clk 00:20:15]} {[%emt
00:00:01]} 63. Kd4 {[%clk 00:28:42]} {[%emt 00:00:03]} Qc5+ {[%clk 00:20:18]}
{[%emt 00:00:06]} 64. Kd3 {[%clk 00:28:49]} {[%emt 00:00:03]} Qe3# {[%clk
00:20:22]} {[%emt 00:00:06]} 0-1

[Event "ONJK FGH 2"]
[Site "Enschede, Netherlands"]
[Date "2022.08.13"]
[Round "7.2"]
[White "De Wit, Jim"]
[Black "De Labaca, Julia"]
[Result "1-0"]
[TimeControl "25min + 10sec/move"]
[WhiteElo "889"]
[BlackElo "1114"]

1. e4 {[%clk 00:25:14]} {[%emt 00:00:05]} e5 {[%clk 00:25:16]} {[%emt
00:00:05]} 2. Nf3 {[%clk 00:25:22]} {[%emt 00:00:02]} Nc6 {[%clk 00:25:17]}
{[%emt 00:00:09]} 3. Bb5 {[%clk 00:25:25]} {[%emt 00:00:07]} Bc5 {[%clk
00:25:03]} {[%emt 00:00:23]} 4. O-O {[%clk 00:25:16]} {[%emt 00:00:19]} Nf6
{[%clk 00:24:50]} {[%emt 00:00:24]} 5. Nc3 {[%clk 00:25:23]} {[%emt 00:00:02]}
O-O {[%clk 00:24:31]} {[%emt 00:00:30]} 6. d3 {[%clk 00:25:26]} {[%emt
00:00:07]} h6 {[%clk 00:24:12]} {[%emt 00:00:28]} 7. h3 {[%clk 00:25:29]}
{[%emt 00:00:07]} d6 {[%clk 00:23:22]} {[%emt 00:01:00]} 8. Bd2 {[%clk
00:25:16]} {[%emt 00:00:23]} a6 {[%clk 00:23:02]} {[%emt 00:00:31]} 9. Bxc6
{[%clk 00:24:41]} {[%emt 00:00:45]} bxc6 {[%clk 00:23:01]} {[%emt 00:00:11]} 10.
Re1 {[%clk 00:24:45]} {[%emt 00:00:05]} Be6 {[%clk 00:22:44]} {[%emt 00:00:27]}
11. a3 {[%clk 00:24:45]} {[%emt 00:00:11]} Rb8 {[%clk 00:22:03]} {[%emt
00:00:51]} 12. Qb1 {[%clk 00:24:19]} {[%emt 00:00:35]} Nd7 {[%clk 00:21:03]}
{[%emt 00:01:10]} 13. b4 {[%clk 00:24:01]} {[%emt 00:00:28]} Bb6 {[%clk
00:20:40]} {[%emt 00:00:33]} 14. Be3 {[%clk 00:23:57]} {[%emt 00:00:14]} d5
{[%clk 00:19:58]} {[%emt 00:00:53]} 15. exd5 {[%clk 00:23:33]} {[%emt
00:00:24]} cxd5 {[%clk 00:20:01]} {[%emt 00:00:16]} 16. Bxb6 {[%clk 00:23:37]}
{[%emt 00:00:06]} Rxb6 {[%clk 00:19:53]} {[%emt 00:00:19]} 17. Nxe5 {[%clk
00:23:26]} {[%emt 00:00:21]} Nxe5 {[%clk 00:19:29]} {[%emt 00:00:33]} 18. Rxe5
{[%clk 00:23:32]} {[%emt 00:00:04]} Qf6 {[%clk 00:18:54]} {[%emt 00:00:44]} 19.
Qe1 {[%clk 00:22:43]} {[%emt 00:00:59]} d4 {[%clk 00:18:00]} {[%emt 00:01:05]}
20. Na4 {[%clk 00:21:58]} {[%emt 00:00:54]} Rc6 {[%clk 00:17:20]} {[%emt
00:00:51]} 21. Rc5 {[%clk 00:21:31]} {[%emt 00:00:35]} Bd7 {[%clk 00:16:28]}
{[%emt 00:00:59]} 22. Rxc6 {[%clk 00:20:37]} {[%emt 00:01:08]} Bxc6 {[%clk
00:16:27]} {[%emt 00:00:12]} 23. Nc5 {[%clk 00:20:34]} {[%emt 00:00:12]} Re8
{[%clk 00:15:42]} {[%emt 00:00:55]} 24. Qd2 {[%clk 00:20:18]} {[%emt 00:00:24]}
Qg6 {[%clk 00:15:28]} {[%emt 00:00:27]} 25. g3 {[%clk 00:20:11]} {[%emt
00:00:16]} Qf5 {[%clk 00:14:11]} {[%emt 00:01:27]} 26. Qd1 {[%clk 00:19:39]}
{[%emt 00:00:39]} Qxh3 {[%clk 00:13:56]} {[%emt 00:00:28]} 27. f3 {[%clk
00:19:12]} {[%emt 00:00:37]} Qxg3+ {[%clk 00:13:50]} {[%emt 00:00:17]} 28. Kf1
{[%clk 00:19:13]} {[%emt 00:00:08]} Bxf3 {[%clk 00:13:16]} {[%emt 00:00:44]} 29.
Qd2 {[%clk 00:18:49]} {[%emt 00:00:05]} Re2 {[%clk 00:13:11]} {[%emt 00:00:44]}
30. Qxe2 {[%clk 00:18:34]} {[%emt 00:00:25]} Bxe2+ {[%clk 00:12:53]} {[%emt
00:00:28]} 31. Kxe2 {[%clk 00:18:38]} {[%emt 00:00:05]} Qe3+ {[%clk 00:12:38]}
{[%emt 00:00:26]} 32. Kf1 {[%clk 00:18:39]} {[%emt 00:00:10]} h5 {[%clk
00:12:27]} {[%emt 00:00:21]} 33. Nxa6 {[%clk 00:18:42]} {[%emt 00:00:07]} h4
{[%clk 00:12:22]} {[%emt 00:00:15]} 34. Kg2 {[%clk 00:18:47]} {[%emt 00:00:05]}
h3+ {[%clk 00:12:13]} {[%emt 00:00:19]} 35. Kh2 {[%clk 00:18:50]} {[%emt
00:00:06]} g5 {[%clk 00:11:58]} {[%emt 00:00:24]} 36. Rg1 {[%clk 00:18:49]}
{[%emt 00:00:12]} f6 {[%clk 00:11:36]} {[%emt 00:00:33]} 37. Nc5 {[%clk
00:18:41]} {[%emt 00:00:18]} f5 {[%clk 00:11:09]} {[%emt 00:00:36]} 38. Rg3
{[%clk 00:18:16]} {[%emt 00:00:34]} Qe5 {[%clk 00:10:33]} {[%emt 00:00:46]} 39.
Kxh3 {[%clk 00:17:49]} {[%emt 00:00:38]} f4 {[%clk 00:10:25]} {[%emt 00:00:19]}
40. Rg2 {[%clk 00:16:40]} {[%emt 00:01:15]} Qf5+ {[%clk 00:10:11]} {[%emt
00:00:28]} 41. Kh2 {[%clk 00:16:39]} {[%emt 00:00:09]} f3 {[%clk 00:10:11]}
{[%emt 00:00:11]} 42. Rf2 {[%clk 00:15:53]} {[%emt 00:00:55]} g4 {[%clk
00:10:02]} {[%emt 00:00:20]} 43. Ne4 {[%clk 00:15:35]} {[%emt 00:00:29]} Qf4+
{[%clk 00:09:37]} {[%emt 00:00:35]} 44. Kg1 {[%clk 00:14:06]} {[%emt 00:01:37]}
g3 {[%clk 00:09:27]} {[%emt 00:00:21]} 45. Rf1 {[%clk 00:13:33]} {[%emt
00:00:43]} g2 {[%clk 00:09:16]} {[%emt 00:00:22]} 46. Rf2 {[%clk 00:12:09]}
{[%emt 00:01:33]} Kg7 {[%clk 00:08:54]} {[%emt 00:00:31]} 47. Nc5 {[%clk
00:12:01]} {[%emt 00:00:19]} Kh6 {[%clk 00:08:52]} {[%emt 00:00:12]} 48. Ne6
{[%clk 00:12:00]} {[%emt 00:00:11]} Qg3 {[%clk 00:08:47]} {[%emt 00:00:16]} 49.
Nxd4 {[%clk 00:11:40]} {[%emt 00:00:27]} Kh5 {[%clk 00:08:45]} {[%emt
00:00:14]} 50. Nxf3 {[%clk 00:11:07]} {[%emt 00:00:43]} Qf4 {[%clk 00:07:25]}
{[%emt 00:01:31]} 51. Kxg2 {[%clk 00:10:14]} {[%emt 00:01:03]} Qg4+ {[%clk
00:07:23]} {[%emt 00:00:11]} 52. Kh1 {[%clk 00:10:02]} {[%emt 00:00:20]} Qh3+
{[%clk 00:07:23]} {[%emt 00:00:11]} 53. Rh2 {[%clk 00:10:09]} {[%emt 00:00:03]}
Qxh2+ {[%clk 00:07:28]} {[%emt 00:00:06]} 54. Nxh2 {[%clk 00:10:15]} {[%emt
00:00:04]} Kg5 {[%clk 00:07:35]} {[%emt 00:00:04]} 55. a4 {[%clk 00:10:23]}
{[%emt 00:00:02]} Kf5 {[%clk 00:07:40]} {[%emt 00:00:05]} 56. a5 {[%clk
00:10:31]} {[%emt 00:00:01]} c6 {[%clk 00:07:45]} {[%emt 00:00:05]} 57. a6
{[%clk 00:10:40]} {[%emt 00:00:01]} Ke6 {[%clk 00:07:53]} {[%emt 00:00:02]} 58.
a7 {[%clk 00:10:49]} {[%emt 00:00:01]} Kd5 {[%clk 00:08:01]} {[%emt 00:00:02]}
59. a8=Q {[%clk 00:10:54]} {[%emt 00:00:05]} Kd6 {[%clk 00:08:08]} {[%emt
00:00:04]} 60. c4 {[%clk 00:11:00]} {[%emt 00:00:04]} Kd7 {[%clk 00:08:13]}
{[%emt 00:00:04]} 61. Qb7+ {[%clk 00:11:07]} {[%emt 00:00:03]} Kd6 {[%clk
00:08:19]} {[%emt 00:00:04]} 62. c5+ {[%clk 00:11:13]} {[%emt 00:00:04]} Kd5
{[%clk 00:08:28]} {[%emt 00:00:02]} 63. Qd7+ {[%clk 00:11:18]} {[%emt
00:00:03]} Ke5 {[%clk 00:08:35]} {[%emt 00:00:04]} 64. Qd6+ {[%clk 00:11:24]}
{[%emt 00:00:04]} Kf5 {[%clk 00:08:43]} {[%emt 00:00:03]} 65. Qxc6 {[%clk
00:11:30]} {[%emt 00:00:03]} Ke5 {[%clk 00:08:50]} {[%emt 00:00:04]} 66. b5
{[%clk 00:11:39]} Kd4 {[%clk 00:08:57]} {[%emt 00:00:03]} 67. b6 {[%clk
00:11:45]} {[%emt 00:00:02]} Kxd3 {[%clk 00:09:05]} {[%emt 00:00:03]} 68. b7
{[%clk 00:11:54]} {[%emt 00:00:02]} Kc4 {[%clk 00:09:12]} {[%emt 00:00:03]} 69.
b8=Q {[%clk 00:12:00]} {[%emt 00:00:03]} Kc3 {[%clk 00:09:20]} {[%emt
00:00:03]} 70. Qcd6 {[%clk 00:12:00]} {[%emt 00:00:09]} Kc4 {[%clk 00:09:28]}
{[%emt 00:00:02]} 71. c6 {[%clk 00:12:02]} {[%emt 00:00:09]} Kc3 {[%clk
00:09:34]} {[%emt 00:00:04]} 72. c7 {[%clk 00:12:10]} {[%emt 00:00:01]} Kc4
{[%clk 00:09:43]} {[%emt 00:00:02]} 73. c8=R# {[%emt 00:00:21]} 1-0

[Event "ONJK FGH 2"]
[Site "Enschede, Netherlands"]
[Date "2022.08.13"]
[Round "7.3"]
[White "Oelmeijer, Sjoerd"]
[Black "Okita, Ryoga"]
[Result "0-1"]
[TimeControl "25min + 10sec/move"]
[WhiteElo "743"]
[BlackElo "829"]

1. e4 {[%clk 00:25:20]} e5 {[%clk 00:25:19]} 2. Nf3 {[%clk 00:25:29]} Nc6
{[%clk 00:25:28]} 3. Bc4 {[%clk 00:25:37]} {[%emt 00:00:02]} Nf6 {[%clk
00:25:37]} 4. Ng5 {[%clk 00:25:43]} {[%emt 00:00:04]} d5 {[%clk 00:25:46]} 5.
exd5 {[%clk 00:25:51]} {[%emt 00:00:02]} Na5 {[%emt 00:00:03]} 6. Qe2 {[%clk
00:25:45]} {[%emt 00:00:14]} Nxc4 {[%clk 00:25:57]} {[%emt 00:00:08]} 7. Qxc4
{[%clk 00:25:52]} {[%emt 00:00:02]} Nxd5 {[%clk 00:26:03]} {[%emt 00:00:05]} 8.
d3 {[%clk 00:25:09]} {[%emt 00:00:53]} h6 {[%clk 00:25:58]} {[%emt 00:00:14]} 9.
Nf3 {[%clk 00:25:12]} {[%emt 00:00:08]} c6 {[%clk 00:25:41]} {[%emt 00:00:27]}
10. O-O {[%clk 00:25:16]} {[%emt 00:00:06]} Bd6 {[%clk 00:25:46]} {[%emt
00:00:05]} 11. Re1 {[%clk 00:25:22]} {[%emt 00:00:04]} f6 {[%clk 00:25:52]}
{[%emt 00:00:04]} 12. b3 {[%clk 00:24:51]} {[%emt 00:00:41]} Qa5 {[%clk
00:25:09]} {[%emt 00:00:53]} 13. Bd2 {[%clk 00:24:03]} {[%emt 00:00:58]} Qc7
{[%clk 00:25:08]} {[%emt 00:00:11]} 14. d4 {[%clk 00:23:55]} {[%emt 00:00:19]}
O-O {[%clk 00:25:02]} {[%emt 00:00:15]} 15. dxe5 {[%clk 00:23:46]} {[%emt
00:00:19]} fxe5 {[%clk 00:25:10]} {[%emt 00:00:02]} 16. Nc3 {[%clk 00:23:04]}
{[%emt 00:00:52]} Be6 {[%clk 00:24:27]} {[%emt 00:00:47]} 17. Nxd5 {[%clk
00:23:10]} {[%emt 00:00:11]} Bxd5 {[%clk 00:24:33]} {[%emt 00:00:02]} 18. Qe2
{[%clk 00:23:00]} {[%emt 00:00:20]} Bxf3 {[%clk 00:24:40]} {[%emt 00:00:03]} 19.
gxf3 {[%clk 00:23:03]} {[%emt 00:00:08]} e4 {[%clk 00:24:41]} {[%emt 00:00:08]}
20. Qxe4 {[%clk 00:22:20]} {[%emt 00:00:54]} Bxh2+ {[%clk 00:24:47]} {[%emt
00:00:04]} 21. Kf1 {[%clk 00:22:12]} {[%emt 00:00:18]} Qd7 {[%clk 00:24:49]}
{[%emt 00:00:04]} 22. Qd3 {[%clk 00:20:44]} {[%emt 00:01:42]} Qh3+ {[%clk
00:24:34]} {[%emt 00:00:24]} 23. Ke2 {[%clk 00:20:49]} {[%emt 00:00:06]} Rae8+
{[%clk 00:24:37]} {[%emt 00:00:06]} 24. Kd1 {[%clk 00:20:20]} {[%emt 00:00:40]}
Rxe1+ {[%clk 00:24:35]} {[%emt 00:00:12]} 25. Kxe1 {[%clk 00:19:09]} {[%emt
00:01:22]} Qxf3 {[%clk 00:24:02]} {[%emt 00:00:43]} 26. Qxf3 {[%clk 00:18:49]}
{[%emt 00:00:29]} Rxf3 {[%clk 00:24:09]} {[%emt 00:00:02]} 27. Ke2 {[%clk
00:18:50]} {[%emt 00:00:10]} Rf8 {[%clk 00:24:13]} {[%emt 00:00:05]} 28. Rh1
{[%clk 00:18:41]} {[%emt 00:00:19]} Be5 {[%clk 00:24:06]} {[%emt 00:00:18]} 29.
Rg1 {[%clk 00:18:35]} {[%emt 00:00:16]} Kh7 {[%clk 00:24:00]} {[%emt 00:00:09]}
30. Bb4 {[%clk 00:18:20]} {[%emt 00:00:32]} Rf7 {[%clk 00:24:00]} {[%emt
00:00:09]} 31. Bc5 {[%clk 00:17:48]} {[%emt 00:00:44]} b6 {[%clk 00:23:46]}
{[%emt 00:00:23]} 32. Be3 {[%clk 00:17:54]} {[%emt 00:00:03]} Rd7 {[%clk
00:23:43]} {[%emt 00:00:14]} 33. f4 {[%clk 00:17:29]} {[%emt 00:00:34]} Bf6
{[%clk 00:23:34]} {[%emt 00:00:19]} 34. Rd1 {[%clk 00:16:57]} {[%emt 00:00:43]}
Rxd1 {[%clk 00:23:34]} {[%emt 00:00:10]} 35. Kxd1 {[%emt 00:00:02]} g5 {[%clk
00:23:40]} {[%emt 00:00:04]} 36. fxg5 {[%clk 00:17:13]} {[%emt 00:00:02]} Bxg5
{[%clk 00:23:49]} {[%emt 00:00:01]} 37. Bxg5 {[%clk 00:17:18]} {[%emt
00:00:06]} hxg5 {[%clk 00:23:58]} 38. Ke2 {[%clk 00:17:26]} {[%emt 00:00:03]}
Kg6 {[%clk 00:24:07]} 39. Kf3 {[%clk 00:17:35]} {[%emt 00:00:01]} Kf5 {[%clk
00:24:16]} 40. Kg3 {[%clk 00:17:43]} {[%emt 00:00:02]} g4 {[%clk 00:24:26]} 41.
Kg2 {[%clk 00:17:50]} {[%emt 00:00:04]} Kf4 {[%clk 00:24:35]} 42. Kf2 {[%clk
00:17:56]} {[%emt 00:00:04]} g3+ {[%clk 00:24:44]} 43. Kg2 {[%clk 00:18:05]}
Ke3 {[%clk 00:24:53]} 44. Kxg3 {[%clk 00:18:13]} {[%emt 00:00:02]} Kd2 {[%clk
00:25:03]} 45. Kf4 {[%clk 00:18:21]} {[%emt 00:00:03]} Kxc2 {[%clk 00:25:11]}
{[%emt 00:00:01]} 46. Ke5 {[%clk 00:18:30]} Kb2 {[%clk 00:25:16]} {[%emt
00:00:05]} 47. Kd6 {[%clk 00:18:39]} {[%emt 00:00:01]} c5 {[%clk 00:25:26]} 48.
Kc7 {[%clk 00:18:46]} {[%emt 00:00:03]} Kxa2 {[%clk 00:25:34]} {[%emt
00:00:01]} 49. Kb7 {[%clk 00:18:55]} {[%emt 00:00:02]} Kxb3 {[%clk 00:25:42]}
{[%emt 00:00:01]} 50. Kxa7 {[%clk 00:19:03]} {[%emt 00:00:02]} c4 {[%clk
00:25:52]} 51. Kxb6 {[%clk 00:19:11]} {[%emt 00:00:02]} c3 {[%clk 00:26:01]} 52.
Kc5 {[%clk 00:19:11]} c2 {[%clk 00:26:10]} {[%emt 00:00:03]} 53. Kd4 {[%clk
00:19:27]} {[%emt 00:00:02]} c1=Q {[%clk 00:26:19]} {[%emt 00:00:02]} 54. Ke4
{[%clk 00:19:40]} {[%emt 00:00:08]} Qd2 {[%clk 00:26:36]} 55. Ke5 {[%clk
00:19:47]} {[%emt 00:00:04]} Qd3 {[%clk 00:26:45]} 56. Kf6 {[%clk 00:19:50]}
{[%emt 00:00:08]} Qe4 {[%clk 00:26:54]} 57. Kg7 {[%clk 00:19:58]} {[%emt
00:00:02]} Qf5 {[%clk 00:27:03]} 58. Kh8 {[%clk 00:20:07]} {[%emt 00:00:01]}
Qg5 {[%clk 00:27:11]} {[%emt 00:00:02]} 59. Kh7 {[%clk 00:20:15]} {[%emt
00:00:02]} Kc4 {[%clk 00:27:20]} 60. Kh8 {[%clk 00:20:22]} {[%emt 00:00:02]}
Kd5 {[%clk 00:27:30]} 61. Kh7 {[%clk 00:20:31]} {[%emt 00:00:02]} Ke6 {[%clk
00:27:39]} 62. Kh8 {[%clk 00:20:40]} Kf7 {[%clk 00:27:48]} 0-1